[Event "FIDE World School-ch O-17 2025"]
[Site "Vrnjacka Banja"]
[Date "2025.03.22"]
[Round "3.1"]
[White "Adithya A Chullikkad"]
[Black "Bogdanov, Artyom"]
[Result "0-1"]
[Annotator "TA"]
[ECO "C47"]
[WhiteElo "2101"]
[BlackElo "2373"]
[PlyCount "186"]
[EventDate "2025.03.19"]
[EventType "swiss"]
[EventCountry "SRB"]
[SourceTitle "playchess.com"]
[Source "ChessBase"]
[SourceQuality "1"]
[TimeControl "5400+30"]

{[%evp 17,186,0,0,0,-13,-8,0,-6,1,-3,10,12,11,0,0,0,0,-2,0,-4,0,-8,0,0,0,0,0,-7,-11,-42,-37,-53,-53,-65,-53,-82,-74,-65,-65,-99,-98,-269,-262,-281,-64,-298,-270,-303,-332,-397,-377,-565,-531,-404,-45,-45,-45,-45,-45,-408,-45,-45,-45,-300,-425,-410,-401,-391,0,-424,-399,-641,-594,-497,-424,-406,-397,-415,-45,-45,-45,-426,-428,-428,-270,-441,-441,-352,-417,-416,0,-402,-45,-45,-45,-45,-45,-45,-45,-457,-45,-465,-398,-376,-45,-45,0,-45,-45,-385,-384,-377,0,-45,0,-385,-361,-348,-349,-348,0,-45,0,-45,0,0,0,-162,-126,-125,-146,-139,-85,-87,0,0,0,-89,-3,-10,-12,-509,-347,-439,-414,-1411,-1397,-1691,-1704,-1106,-1255,-2405,-2020,-29972,-29973,-29973,-29974,-29971,-29968,-29976,-29977,-29977,-29978,-29978,-29979,-29979,-29977,-29979,-29975,-29976,-11159]} 1. e4 {[%emt 0:05:01]} e5 {[%emt 0:00:07]} 2. Nf3 {[%emt 0:00:14]} Nc6 {[%emt 0:00:06]} 3. Nc3 {[%emt 0:00:28]} Nf6 {[%emt 0:00:11]} 4. d4 {[%emt 0:00:22]} exd4 {[%emt 0:00:06]} 5. Nxd4 {[%emt 0:00:25]} Bb4 {[%emt 0:02:32]} 6. Nxc6 {[%emt 0:00:50]} bxc6 {[%emt 0:00:07]} 7. Bd3 {[%emt 0:00:56]} d5 {[%emt 0:00:51]} 8. exd5 {[%emt 0:01:01]} cxd5 {[%emt 0:01:28]} 9. O-O {[%emt 0:01:25]} O-O {[%emt 0:00:07]} 10. h3 {[%emt 0:01:12] C47: Scotch Four Knights and Four Knights with 4 g3.} c6 {[%emt 0:02:45]} 11. Qf3 {[%emt 0:01:32]} Bd6 {[%emt 0:07:33]} 12. Re1 {[%emt 0:02:34] The position is equal.} Be6 {[%emt 0:08:04]} 13. Bf4 {[%emt 0:22:26]} Bxf4 {[%emt 0:13:06] Recently 13...Re8 got a lot of attention.} 14. Qxf4 {[%emt 0:00:43]} Qb8 {[%emt 0:01:40]} 15. Qxb8 {[%emt 0:01:46]} Raxb8 {[%emt 0:00:06]} 16. b3 {[%emt 0:01:27]} c5 {[%emt 0:02:47]} 17. Rab1 $146 {[%emt 0:13:32]} (17. Rad1 Rfc8 18. Ba6 Rc7 19. Bf1 h5 20. Re5 g6 21. Ne2 d4 22. c3 dxc3 23. Nxc3 {½-½ Paravyan,D (2609)-Petrosyan,M (2539) Wch Rapid Almaty 2022 (7)}) 17... Rfc8 {[%emt 0:03:26]} 18. g4 {[%emt 0:06:40]} h6 {[%emt 0:12:56]} 19. Kh2 {[%emt 0:06:38]} Rb6 {[%emt 0:10:27]} 20. Na4 {[%emt 0:05:58]} Rd6 {[%emt 0:06:15]} 21. Rbd1 {[%emt 0:01:07] Not much happening anymore} Kf8 {[%emt 0:02:21]} 22. c4 {[%emt 0:03:24]} Bd7 {[%emt 0:07:06]} 23. Nc3 {[%emt 0:02:20]} d4 {[%emt 0:00:41]} 24. Ne4 {[%emt 0:03:15]} Nxe4 {[%emt 0:01:37]} 25. Bxe4 {[%emt 0:02:10]} a5 {[%emt 0:04:56]} 26. Bf3 {[%emt 0:08:13]} Re8 {[%emt 0:01:27]} 27. Rxe8+ {[%emt 0:00:50]} Bxe8 $17 {[%emt 0:01:13][%mdl 4096] Endgame KRB-KRB} 28. Re1 {[%emt 0:01:27]} Re6 {[%emt 0:03:56] Wards off Re5} 29. Rxe6 {[%emt 0:01:46]} (29. Rf1 $17) 29... fxe6 {[%emt 0:00:04] KB-KB} 30. Be4 {[%emt 0:00:08]} Ke7 $2 {[%emt 0:01:06]} (30... g5 $1 $19 31. Kg3 Kg7) 31. Kg3 $2 {[%emt 0:02:40]} ({White must play} 31. h4 $1 $15) 31... g5 $19 {[%emt 0:03:41]} 32. Kf3 {[%emt 0:03:05]} Kf6 {[%emt 0:00:38]} 33. Bb7 {[%emt 0:00:47]} Ke5 {[%emt 0:00:17]} 34. Be4 {[%emt 0:00:15]} (34. Ke2 {might work better.}) 34... h5 {[%emt 0:01:15]} 35. a3 {[%emt 0:00:20][%cal Ba2a3,Ba3a4][%mdl 32]} h4 $2 {[%emt 0:01:07]} (35... a4 $19 36. Bc2 d3 37. Bxd3 axb3 38. gxh5 Kd4 (38... Bxh5+ 39. Ke3 $17)) 36. a4 $15 {[%emt 0:00:16]} Kd6 {[%emt 0:00:42]} 37. Ke2 {[%emt 0:00:37]} Bd7 {[%emt 0:00:40]} 38. Kf3 $2 {[%emt 0:01:00][%mdl 8192]} (38. Ba8 $15) 38... Ke5 $2 {[%emt 0:00:50]} (38... Bc6 $19 39. Bxc6 Kxc6) 39. Bb7 {[%emt 0:00:08]} Kf6 {[%emt 0:01:06]} 40. Be4 $2 {[%emt 0:00:21][%mdl 8192]} (40. Ke2 $15) 40... Kf7 $1 $19 {[%emt 0:00:30]} 41. Bb7 {[%emt 0:00:13]} Ke7 {[%emt 0:00:24]} 42. Ba8 {[%emt 0:00:30]} Kf7 {[%emt 0:00:32]} 43. Bb7 $1 {[%emt 0:00:05]} Be8 $1 {[%emt 0:00:18]} 44. Ba8 $2 {[%emt 0:00:49]} (44. Ke4 Ke7 (44... Kf6 $2 45. Kf3 $19) 45. Kf3) 44... Kf6 {[%emt 0:00:31]} 45. Bb7 {[%emt 0:00:10]} Bg6 {[%emt 0:00:44]} 46. Be4 {[%emt 0:00:02]} Bf7 {[%emt 0:00:17]} 47. Bc2 {[%emt 0:00:44]} Ke5 $2 {[%emt 0:00:16]} (47... Kg7 $19 48. Bd3 Bg6 49. Bxg6 Kxg6) 48. Bd3 $15 {[%emt 0:00:08]} Kd6 {[%emt 0:00:21]} 49. Be4 $2 {[%emt 0:00:27][%mdl 8192]} (49. Ke2 $15) 49... Kd7 $19 {[%emt 0:00:10]} 50. Bc2 {[%emt 0:00:45]} Kc7 {[%emt 0:00:14]} 51. Bh7 $2 {[%emt 0:00:36]} (51. Be4) 51... Be8 $1 {[%emt 0:00:22]} 52. Ke4 {[%emt 0:01:21]} Kd6 {[%emt 0:01:27]} 53. Kf3 {[%emt 0:00:06]} Bd7 {[%emt 0:00:23]} 54. Be4 $1 {[%emt 0:00:27]} Bc8 $2 {[%emt 0:00:37]} (54... Bc6 $1 $19 55. Bxc6 Kxc6) 55. Ke2 $15 {[%emt 0:00:42]} Kc7 {[%emt 0:00:31]} (55... Ke5 $5 56. Kf3 $8 Bd7 $11) 56. Ba8 {[%emt 0:00:49]} Bd7 {[%emt 0:00:26]} 57. Be4 {[%emt 0:00:24]} Bc6 {[%emt 0:00:36]} 58. Kf3 {[%emt 0:00:00][%mdl 8192]} (58. Bxc6 $1 $15 Kxc6 59. Kd1) 58... Be8 $2 {[%emt 0:00:29]} (58... Kb6 $19 59. Bxc6 Kxc6) 59. Ba8 $2 {[%emt 0:00:00][%mdl 8192]} (59. Bd3 $15) 59... Kd7 {[%emt 0:00:18]} 60. Bb7 {[%emt 0:00:00]} Ke7 $2 {[%emt 0:00:04]} (60... Kd6 $19 61. Ba8 Bc6+ 62. Bxc6 Kxc6) 61. Be4 {[%emt 0:00:00]} Kf6 {[%emt 0:00:05]} 62. Ke2 {[%emt 0:00:16]} Kf7 {[%emt 0:00:47]} 63. Bb7 $2 {[%emt 0:00:32][%mdl 8192]} (63. Kd3 $15) 63... Ke7 $19 {[%emt 0:00:06]} 64. Kf3 {[%emt 0:00:14]} Bd7 $2 {[%emt 0:00:59]} (64... Kd6 $1 $19 65. Ba8 Bc6+ 66. Bxc6 Kxc6) 65. Ba8 $15 {[%emt 0:00:27]} Kd6 {[%emt 0:00:09]} 66. Bb7 $2 {[%emt 0:00:11][%mdl 8192]} (66. Be4 $11 {and White stays safe.}) 66... Kc7 $19 {[%emt 0:00:19]} 67. Ba8 {[%emt 0:00:40]} Be8 {[%emt 0:00:16]} 68. Be4 {[%emt 0:00:10] [#]} Bf7 $2 {[%emt 0:00:16]} (68... Bc6 $1 $19 {and ...Kb6 would now be decisive} 69. Bxc6 Kxc6) 69. Bh7 $15 {[%emt 0:00:12]} Kd6 {[%emt 0:00:22]} (69... Kd8 $5 70. Ke4 $8 Be8 $11) 70. Be4 {[%emt 0:00:14]} Ke5 {[%emt 0:00:08]} 71. Bh7 {[%emt 0:00:12]} Be8 $2 {[%emt 0:00:12]} (71... Kf6 $11) 72. Be4 $19 {[%emt 0:00:05] [#]} d3 $1 {[%emt 0:01:07][%cal Bd4d3,Bd3d2][%mdl 544]} 73. Ke3 {[%emt 0:02:06] [#]} d2 $1 {[%emt 0:00:04][%mdl 512]} 74. Bc2 {[%emt 0:00:08]} Bc6 {[%emt 0:00:29] Wards off f3} 75. f3 {[%emt 0:00:48]} Bb7 {[%emt 0:00:07] Black is more active.} (75... Kf6 $17) 76. Bd1 $1 $11 {[%emt 0:00:09]} Ba8 {[%emt 0:00:27]} 77. Bc2 {[%emt 0:00:26]} (77. Be2 $11) 77... Bc6 {[%emt 0:00:06]} ({Black should try} 77... Kf6 $17) 78. Bd1 $1 {[%emt 0:00:08]} Be8 {[%emt 0:00:35]} 79. Kxd2 $2 {[%emt 0:02:35][%mdl 8192] White is now going downhill.} (79. Be2 $11) 79... Kd4 {[%emt 0:04:33]} 80. Bc2 {[%emt 0:01:29]} Bc6 {[%emt 0:00:00] Repels Be4} 81. Ke2 {[%emt 0:00:12]} (81. Bd1 e5 82. Ke2 e4 83. fxe4 Bxe4 $19) (81. b4 $142 cxb4 (81... Bxf3 82. bxa5 Bb7 83. Bd3 $11) 82. f4 gxf4 (82... Kxc4 83. fxg5 e5 84. g6 $17) 83. g5) 81... e5 $19 {[%emt 0:00:00]} 82. Bd1 {[%emt 0:02:00]} e4 {[%emt 0:00:00]} 83. fxe4 {[%emt 0:00:31]} Bxe4 {[%emt 0:00:00]} 84. Kf2 {[%emt 0:00:32]} Kd3 {[%emt 0:00:40] ( -> ...Kd2)} 85. Be2+ {[%emt 0:00:33]} Kd2 {[%emt 0:00:30] Black mates.} 86. Bf1 {[%emt 0:00:29]} Bb7 {[%emt 0:00:55]} 87. Be2 {[%emt 0:00:28]} Bc6 {[%emt 0:00:10]} 88. Bf1 {[%emt 0:00:31]} Kc3 {[%emt 0:00:26]} 89. Ke3 {[%emt 0:00:24]} Kxb3 {[%emt 0:00:06]} 90. Kd3 {[%emt 0:00:28]} Kxa4 {[%emt 0:00:06]} 91. Kc3 {[%emt 0:00:37]} Ka3 {[%emt 0:00:06]} 92. Kc2 {[%emt 0:00:33]} Kb4 {[%emt 0:00:03]} 93. Kb2 {[%emt 0:00:03]} Be8 {[%emt 0:00:08] Weighted Error Value: White=0.79/Black=0.87  Loses game:     	White=10    	---        Missed win:     	---       	Black=9      Mistake:       	White=5     	Black=3      Inaccurate:     	White=4     	Black=4      OK:         	White=17    	Black=23     Best:        	White=10    	Black=3      Strong:       	White=4     	Black=3      Brilliant:      	---       	Black=2} (93... Bb7 $142 94. Kc2 Ba6 95. Bg2 Bxc4 96. Bf3 a4 (96... Bf1 $2 97. Bd5 $19) 97. Be4 a3 (97... Bf1 $2 98. Kd2 $19) 98. Bg2 Bd3+ 99. Kxd3 a2 100. Ke4 a1=Q (100... a1=B 101. Kf5 $16) 101. Kf5 Qc1 102. Bb7 Qe3 103. Be4 Qf4+ (103... Qxh3 $2 104. Kxg5 Qf1 105. Bb7 $19) 104. Kg6 Qxe4+ 105. Kh5 Qe7 106. Kg6 c4 107. Kh6 c3 108. Kh5 c2 109. Kg6 c1=Q (109... c1=B {leads to mate.} 110. Kh6 Qe6+ 111. Kh7 Qf7+ 112. Kh6 Qg8 113. Kh5 Qh7#) 110. Kh6 Qb1 111. Kh5 Qbh7#) 0-1

[Event "FIDE World School-ch O-17 2025"]
[Site "Vrnjacka Banja"]
[Date "2025.03.22"]
[Round "3.2"]
[White "Ljepic, Andrej"]
[Black "Elmirzaev, Khondamir"]
[Result "0-1"]
[Annotator "TA"]
[ECO "D00"]
[WhiteElo "2337"]
[BlackElo "2036"]
[PlyCount "76"]
[EventDate "2025.03.19"]
[EventType "swiss"]
[EventCountry "SRB"]
[SourceTitle "playchess.com"]
[Source "ChessBase"]
[SourceQuality "1"]
[TimeControl "5400+30"]

{[%evp 9,76,-7,-8,-14,0,-16,-6,-6,-13,-13,0,9,25,0,10,-6,0,-40,-40,-35,-15,-29,-22,-20,-18,-15,-19,-63,-29,-29,-29,-22,-29,-54,-41,-58,-72,-121,-111,-135,-128,-131,-137,-312,-320,-313,-286,-330,-322,-309,-255,-315,-324,-301,-328,-253,-251,-568,-568,-568,-568,-568,-568,-568,-568,-568,-504,-620,-608]} 1. d4 {[%emt 0:00:03]} Nf6 {[%emt 0:00:06]} 2. Bg5 {[%emt 0:00:06]} d5 {[%emt 0:00:15]} 3. Bxf6 {[%emt 0:00:13]} exf6 {[%emt 0:00:35]} 4. e3 {[%emt 0:00:08]} Be6 {[%emt 0:00:45]} 5. Ne2 {[%emt 0:01:20]} Bd6 {[%emt 0:00:16]} 6. g3 {[%emt 0:01:16] D00: 1 d4 d5: Unusual lines.} c6 {[%emt 0:00:14]} 7. Bg2 {[%emt 0:00:25]} Nd7 {[%emt 0:03:33]} 8. Nd2 {[%emt 0:02:36] The position is equal.} h5 {[%emt 0:04:35]} 9. h4 {[%emt 0:01:47]} b5 $146 {[%emt 0:05:05]} ({Predecessor:} 9... f5 10. b3 Nb6 11. c3 Qe7 12. Qc2 Rc8 13. Qd3 O-O 14. O-O g6 15. Nf4 Bxf4 16. exf4 {1-0 Barbosa,O (2518)-Jacobson,B (2225) PRO League Stage rapid 2017 (6)}) 10. a4 {[%emt 0:06:08] White wants to play axb5.} a6 {[%emt 0:01:45]} 11. e4 {[%emt 0:03:03]} Nb6 {[%emt 0:09:41]} 12. b3 {[%emt 0:19:35]} bxa4 {[%emt 0:02:34]} 13. bxa4 {[%emt 0:07:09]} a5 {[%emt 0:04:17]} 14. c3 {[%emt 0:04:45]} g6 {[%emt 0:04:47]} 15. Qc2 {[%emt 0:05:08]} O-O {[%emt 0:02:19]} 16. O-O {[%emt 0:02:31]} Rb8 {[%emt 0:13:43]} 17. Rfe1 {[%emt 0:06:34]} Qc7 {[%emt 0:00:38]} 18. f4 {[%emt 0:11:34]} f5 {[%emt 0:08:37] Black is more active.} 19. e5 {[%emt 0:03:56]} Be7 {[%emt 0:01:58]} 20. Kh2 {[%emt 0:05:47]} Rfc8 {[%emt 0:01:19]} 21. Qd3 {[%emt 0:01:46]} c5 {[%emt 0:10:50]} 22. dxc5 {[%emt 0:01:48][%csl Oa4,Oc3,Oc5] White has weak pawns. Black attacks a weakness} Nd7 {[%emt 0:00:09]} 23. Nd4 {[%emt 0:03:14]} (23. c6 $142 Qxc6 24. Rec1) 23... Nxc5 $17 {[%emt 0:00:27]} (23... Bxc5 $6 24. Nb5 Qd8 25. Nb3 $11) 24. Qc2 {[%emt 0:00:14]} Ne4 {[%emt 0:02:14]} 25. Nb5 {[%emt 0:01:06]} Qb6 {[%emt 0:01:16] and ...Qf2 should not be overlooked} 26. Rac1 $2 {[%emt 0:01:51] [#] Loses the game.} (26. Qd3 $17 {was necessary.}) 26... Nxc3 $1 $19 {[%emt 0:05:46]} 27. Nxc3 {[%emt 0:02:41] and Qd3 would now be decisive} d4 $1 {[%emt 0:00:07]} 28. Qd3 {[%emt 0:04:27]} dxc3 {[%emt 0:00:15]} (28... Rxc3 29. Rxc3 dxc3 30. Qxc3 $19) 29. Rxc3 {[%emt 0:00:04]} Rxc3 {[%emt 0:00:39]} 30. Qxc3 {[%emt 0:00:05]} Bb4 {[%emt 0:00:11]} 31. Qb2 {[%emt 0:00:09]} Qf2 {[%emt 0:03:27][%csl LRd2,LRe1]} 32. Rb1 {[%emt 0:00:40] [#]} Bd6 $1 {[%emt 0:04:28] This pair of bishops is nice.} (32... Qxd2 $2 {too greedy.} 33. Qxd2 Bxd2 34. Rxb8+ Kg7 35. Bc6 $18) 33. Qc3 {[%emt 0:01:32] [#]} (33. Qxb8+ {was the crucial defense.} Bxb8 34. Rxb8+ Kg7 35. Rd8) 33... Rxb1 $1 {[%emt 0:00:58] Black is clearly winning.} 34. Nxb1 {[%emt 0:00:09]} Bb4 {[%emt 0:00:21]} 35. Qd3 {[%emt 0:02:10] Wards off Bd5} Qb2 {[%emt 0:00:39]} 36. Kh3 {[%emt 0:00:57]} Ba2 {[%emt 0:01:43]} 37. Qd8+ {[%emt 0:00:46]} Kg7 {[%emt 0:01:06]} 38. Qf6+ {[%emt 0:00:21]} Kh7 {[%emt 0:00:15] Weighted Error Value: White=0.36/Black=0.03 (flawless)   Loses game:     	White=1     	---        Mistake:       	White=2     	---        Inaccurate:     	White=2     	Black=1      OK:         	White=10    	Black=15     Best:        	---       	Black=4      Strong:       	---       	Black=3      Brilliant:      	---       	Black=1} 0-1

[Event "FIDE World School-ch O-17 2025"]
[Site "Vrnjacka Banja"]
[Date "2025.03.22"]
[Round "3.3"]
[White "Taran, Egor A"]
[Black "Yildiz, Egehan"]
[Result "1/2-1/2"]
[Annotator "TA"]
[ECO "B12"]
[WhiteElo "1961"]
[BlackElo "2204"]
[PlyCount "110"]
[EventDate "2025.03.19"]
[EventType "swiss"]
[EventCountry "SRB"]
[SourceTitle "playchess.com"]
[Source "ChessBase"]
[SourceQuality "1"]
[TimeControl "5400+30"]

{[%evp 9,110,0,0,13,8,7,5,2,32,47,40,33,40,24,33,24,39,42,36,31,35,22,47,36,54,31,83,0,132,128,154,104,104,81,115,124,149,164,144,108,197,204,201,189,327,361,309,205,212,88,89,82,92,72,164,177,171,170,158,13,19,20,27,12,103,104,100,97,102,102,351,350,323,182,541,532,823,636,573,337,327,338,339,263,298,301,286,290,407,370,380,360,447,272,378,349,366,0,246,0,358,0,249]} 1. e4 {[%emt 0:00:01]} c6 {[%emt 0:00:07]} 2. d4 {[%emt 1:31:29]} d5 {[%emt 0:00:06]} 3. e5 {[%emt 0:00:00]} c5 {[%emt 0:00:04]} 4. dxc5 {[%emt 0:00:00]} e6 {[%emt 0:00:06]} 5. a3 {[%emt 0:00:00]} Bxc5 {[%emt 0:00:07]} 6. b4 {[%emt 0:00:00] B12: Caro-Kann: Advance Variation.} Be7 {[%emt 0:00:07]} 7. Nf3 {[%emt 0:00:00]} a5 {[%emt 0:00:04]} 8. b5 {[%emt 0:00:00]} f6 {[%emt 0:00:06]} 9. c4 {[%emt 0:00:00]} fxe5 {[%emt 0:01:17]} 10. Nxe5 {[%emt 0:00:00]} Nf6 $146 {[%emt 0:00:07] Prevents Qh5+.} (10... Bf6 11. Bb2 Nd7 12. Nxd7 Bxd7 13. Bxf6 Nxf6 14. Bd3 dxc4 15. Bxc4 Qc7 16. Qe2 O-O {1-0 Mokshanov,A (2444)-Shakirov,M (2150) Chigorin Memorial 28th 2021 (8)}) 11. Bd3 {[%emt 0:00:00]} Nbd7 {[%emt 0:02:33]} 12. Nxd7 {[%emt 0:00:00]} Bxd7 {[%emt 0:00:42][%cal Bc8d7,Bd7e8,Be8h5][%mdl 32]} 13. O-O {[%emt 0:00:00]} O-O {[%emt 0:01:42]} 14. Bb2 {[%emt 0:00:00]} Be8 {[%emt 0:34:16]} 15. Qe2 {[%emt 0:00:00]} Qb6 {[%emt 0:16:25]} 16. Nd2 {[%emt 0:00:00]} Bh5 {[%emt 0:10:17]} 17. Qe5 {[%emt 0:00:00]} Rae8 {[%emt 0:01:54]} (17... Qd6 $14) 18. Bd4 {[%emt 0:00:00]} (18. Rae1 $16) 18... Qd8 {[%emt 0:10:13]} (18... Qd6 $1 $11) 19. c5 $16 {[%emt 0:00:00][%cal Ob5b6]} (19. Qxe6+ Bf7 20. Qb6 Qxb6 21. Bxb6 Nd7 22. Bxa5 Nc5 $15) 19... Bf7 {[%emt 0:02:15][%cal Ob7b6]} 20. a4 {[%emt 0:00:00]} (20. f4 $142) 20... Nh5 {[%emt 0:02:03]} 21. f4 $40 {[%emt 0:00:00][%cal Bf2f4,Bf4g5][%mdl 160] Black is in trouble. White is much more active.} Bf6 {[%emt 0:01:21]} 22. Qe3 {[%emt 0:00:00]} Bg6 {[%emt 0:01:21]} 23. Bxg6 {[%emt 0:00:00]} hxg6 {[%emt 0:00:01]} 24. Be5 {[%emt 0:00:00]} g5 {[%emt 0:06:22]} (24... Bxe5 $16 25. fxe5 Qh4) 25. Bxf6 $18 {[%emt 0:00:00]} Rxf6 {[%emt 0:03:13]} 26. fxg5 {[%emt 0:00:00]} Rxf1+ {[%emt 0:00:43]} (26... Rf5 $142 27. Nb3 Rxg5) 27. Rxf1 {[%emt 0:00:00] [#]} e5 {[%emt 0:00:38]} 28. Qf3 {[%emt 0:00:00]} Nf4 {[%emt 0:00:34][%cal Oe8f8]} 29. g3 {[%emt 0:00:00]} (29. h4 $18) 29... Nh3+ $16 {[%emt 0:01:06][%cal Bf4h3,Bh3g5,Bg5h7][%mdl 32]} 30. Kg2 {[%emt 0:00:00]} Nxg5 {[%emt 0:00:04]} 31. Qf5 {[%emt 0:00:00]} d4 {[%emt 0:02:21]} (31... Qe7 $16 {keeps fighting.}) 32. h4 $18 {[%emt 0:00:00]} Qd5+ {[%emt 0:00:25] [#]} 33. Kg1 $1 {[%emt 0:00:00]} Nh7 {[%emt 0:00:15][%cal Od4d3]} 34. Rc1 {[%emt 0:02:22]} (34. Qg6 $16 Rf8 35. Rxf8+ Nxf8 36. Qc2 (36. Qd6 Qxd6 37. cxd6 Nd7 $11)) 34... Rf8 $11 {[%emt 0:02:13]} 35. Qe4 {[%emt 0:00:07]} Qa2 {[%emt 0:00:09]} 36. Qd3 {[%emt 0:00:18] Qb3+ is in the air} Kh8 {[%emt 0:01:03]} (36... Qxa4 $11 37. c6 bxc6 38. bxc6 Nf6) 37. c6 $16 {[%emt 0:00:38]} bxc6 {[%emt 0:00:05]} 38. bxc6 {[%emt 0:00:01][%csl Oc6] White has a strong passed pawn} Qe6 {[%emt 0:02:05]} 39. c7 {[%emt 0:00:35] White plays on the queen side and is better} Nf6 $2 {[%emt 0:00:15]} (39... Rc8 $16) 40. Qc4 $18 {[%emt 0:02:37]} Qc8 {[%emt 0:01:00]} 41. Qc5 {[%emt 0:03:35]} (41. Rb1 $142 Qg4 42. Nf1) 41... Rf7 $2 {[%emt 0:00:34]} (41... Re8 {is more resistant.} 42. Rb1 (42. Qxa5 Qg4 $16) 42... Qa8) 42. Qxe5 {[%emt 0:00:25]} (42. Qxa5 e4 43. Kg2 d3 $16 (43... e3 44. Nf3 $16)) 42... Rd7 {[%emt 0:00:16]} 43. Qxa5 {[%emt 0:01:47]} Nd5 {[%emt 0:01:25]} 44. Ne4 {[%emt 0:06:16]} Rxc7 {[%emt 0:00:00]} 45. Rxc7 {[%emt 0:00:16]} Nxc7 {[%emt 0:00:00][%mdl 4096] Endgame KQN-KQN. White is a pawn up.} 46. Qh5+ {[%emt 0:00:13]} Kg8 {[%emt 0:00:00]} 47. Ng5 {[%emt 0:01:05]} Qf5 {[%emt 0:00:00] Against Qh7+} 48. Qf3 {[%emt 0:00:23]} Qb1+ {[%emt 0:01:16]} (48... Qd7 $142 49. Qb3+ Kf8 50. Qb4+ Ke8) 49. Kg2 {[%emt 0:00:06] Threatening mate with Qf7+.} Qa2+ {[%emt 0:00:47]} 50. Kh3 {[%emt 0:00:19]} Qc4 {[%emt 0:00:51]} 51. Qe4 {[%emt 0:00:32]} Qf1+ {[%emt 0:00:20]} 52. Kg4 {[%emt 0:00:35]} Qd1+ {[%emt 0:00:01]} 53. Kh3 {[%emt 0:00:56]} Qf1+ {[%emt 0:00:01]} 54. Kg4 {[%emt 0:00:20]} (54. Kh2 $142 Qf2+ 55. Kh3) 54... Qd1+ {[%emt 0:00:12]} 55. Kh3 {[%emt 0:00:35] And now a5 would win.} Qf1+ {[%emt 0:00:46] Weighted Error Value: White=0.56/Black=0.55  Loses game:     	---       	Black=1      Mistake:       	White=6     	Black=8      Inaccurate:     	White=4     	Black=3      OK:         	White=15    	Black=18     Best:        	White=4     	Black=8      Strong:       	White=1     	---} 1/2-1/2